lending/lending_fUSD_20250719
["ID","MTS","AMOUNT","RATE_DAILY","PERIOD"]
[373190020,1752899448165,-373.07297731,0.00019265,2]
[373190022,1752899448173,-215.0738,0.00019265,2]
[373190024,1752899448182,-3739.63400058,0.0001928,2]
[373190026,1752899448191,-480.0,0.00019285,2]
[373190028,1752899448200,-2286.79,0.00019285,2]
[373190030,1752899448209,-480.0,0.00019285,2]
[373190031,1752899448219,-502.42,0.00019285,2]
[373190033,1752899448228,-480.0,0.00019285,2]
[373190035,1752899448237,-779.35,0.00019285,2]
[373190037,1752899448246,-480.0,0.00019285,2]
[373190039,1752899448255,-500.0,0.00019285,2]
[373190041,1752899448264,-480.0,0.00019285,2]
[373190043,1752899448273,-151.0,0.00019286,2]
[373190045,1752899448283,-151.0,0.00019286,2]
[373190048,1752899448293,-151.0,0.00019286,2]
[373190049,1752899448303,-153.479417,0.00019286,2]
[373190051,1752899448312,-151.61024,0.00019286,2]
[373190054,1752899448322,-151.0,0.00019286,2]
[373190056,1752899448332,-152.726115,0.00019286,2]
[373190058,1752899448341,-480.0,0.00019286,2]
[373190060,1752899448351,-443.08785127,0.00019286,2]
[373190062,1752899448360,-841.64,0.00019286,2]
[373190064,1752899448370,-4196.98,0.00019286,2]
[373190066,1752899448379,-480.0,0.00019286,2]
[373190068,1752899448389,-480.0,0.00019286,2]
[373190070,1752899448398,-693.75,0.00019286,2]
[373190072,1752899448407,-480.0,0.00019286,2]
[373190074,1752899448418,-1113.24,0.00019286,2]
[373190076,1752899448428,-844.98,0.00019286,2]
[373190078,1752899448437,-480.0,0.00019286,2]
[373190080,1752899448446,-1688.73,0.00019286,2]
[373190082,1752899448455,-1062.85,0.00019286,2]
[373190084,1752899448464,-480.0,0.00019286,2]
[373190086,1752899448474,-500.0,0.00019286,2]
[373190088,1752899448483,-480.0,0.00019286,2]
[373190090,1752899448492,-480.0,0.00019286,2]
[373190092,1752899448501,-480.0,0.00019286,2]
[373190094,1752899448510,-1068.12,0.00019286,2]
[373190096,1752899448519,-168.0,0.00019286,2]
[373190098,1752899448528,-151.0,0.00019287,2]
[373190100,1752899448537,-151.0,0.00019287,2]
[373190101,1752899448547,-151.0,0.00019287,2]
[373190103,1752899448559,-189.267193,0.00019287,2]
[373190106,1752899448569,-151.407578,0.00019287,2]
[373190108,1752899448580,-151.0,0.00019287,2]
[373190110,1752899448590,-151.0,0.00019287,2]
[373190112,1752899448600,-270.190461,0.00019287,2]
[373190114,1752899448609,-480.0,0.00019287,2]
[373190116,1752899448618,-480.0,0.00019287,2]
[373190118,1752899448627,-480.0,0.00019287,2]
[373190119,1752899448637,-1667.17,0.00019287,2]
[373190121,1752899448646,-480.0,0.00019287,2]
[373190124,1752899448655,-480.0,0.00019287,2]
[373190125,1752899448665,-480.0,0.00019287,2]
[373190127,1752899448675,-480.0,0.00019287,2]
[373190129,1752899448685,-480.0,0.00019287,2]
[373190132,1752899448695,-480.0,0.00019287,2]
[373190134,1752899448704,-480.0,0.00019287,2]
[373190136,1752899448714,-480.0,0.00019287,2]
[373190137,1752899448723,-279.25298169,0.00019287,2]
[373190139,1752899448732,-480.0,0.00019287,2]
[373190141,1752899448742,-480.0,0.00019287,2]
[373190143,1752899448752,-480.0,0.00019287,2]
[373190145,1752899448761,-480.0,0.00019287,2]
[373190147,1752899448770,-480.0,0.00019287,2]
[373190149,1752899448780,-480.0,0.00019287,2]
[373190151,1752899448789,-282.73790534,0.00019287,2]
[373190153,1752899448798,-480.0,0.00019287,2]
[373190155,1752899448809,-480.0,0.00019287,2]
[373190157,1752899448819,-480.0,0.00019287,2]
[373190159,1752899448828,-480.0,0.00019287,2]
[373190161,1752899448837,-480.0,0.00019287,2]
[373190163,1752899448846,-480.0,0.00019287,2]
[373190165,1752899448855,-480.0,0.00019287,2]
[373190167,1752899448865,-394.75480652,0.00019287,2]
[373190169,1752899448874,-480.0,0.00019287,2]
[373190171,1752899448883,-480.0,0.00019287,2]
[373190173,1752899448893,-480.0,0.00019287,2]
[373190175,1752899448906,-480.0,0.00019287,2]
[373190177,1752899448915,-480.0,0.00019287,2]
[373190179,1752899448925,-241.325355,0.00019287,2]
[373190181,1752899448934,-151.0,0.00019287,2]
[373190182,1752899448945,-480.0,0.00019287,2]
[373190183,1752899448954,-244.643802,0.00019287,2]
[373190184,1752899448964,-480.0,0.00019287,2]
[373190185,1752899448974,-480.0,0.00019287,2]
[373190186,1752899448983,-480.0,0.00019287,2]
[373190187,1752899448992,-480.0,0.00019287,2]
[373190188,1752899449001,-480.0,0.00019287,2]
[373190189,1752899449010,-1134.86,0.00019287,2]
[373190190,1752899449020,-480.0,0.00019287,2]
[373190191,1752899449029,-184.19272153,0.00019287,2]
[373190192,1752899449038,-480.0,0.00019287,2]
[373190194,1752899449047,-546.94826668,0.00019287,2]
[373190196,1752899449058,-480.0,0.00019287,2]
[373190198,1752899449067,-152.367028,0.00019287,2]
[373190199,1752899449076,-480.0,0.00019287,2]
[373190202,1752899449086,-487.98,0.00019287,2]
[373190203,1752899449096,-171.94369905,0.00019287,2]
[373190205,1752899449105,-1007.98,0.00019287,2]
[373190207,1752899449114,-480.0,0.00019287,2]
[373190209,1752899449124,-480.0,0.00019287,2]
[373190211,1752899449133,-480.0,0.00019287,2]
[373190213,1752899449142,-480.0,0.00019287,2]
[373190215,1752899449151,-925.23,0.00019287,2]
[373190217,1752899449160,-635.47,0.00019287,2]
[373190219,1752899449170,-480.0,0.00019287,2]
[373190221,1752899449180,-9427.14,0.00019287,2]
[373190223,1752899449189,-480.0,0.00019287,2]
[373190225,1752899449199,-480.0,0.00019287,2]
[373190227,1752899449208,-1359.03,0.00019287,2]
[373190229,1752899449218,-480.0,0.00019287,2]
[373190231,1752899449227,-480.0,0.00019287,2]
[373190233,1752899449236,-1428.21,0.00019287,2]
[373190235,1752899449245,-877.57,0.00019287,2]
[373190237,1752899449254,-480.0,0.00019287,2]
[373190239,1752899449263,-480.0,0.00019287,2]
[373190241,1752899449273,-480.0,0.00019287,2]
[373190243,1752899449282,-480.0,0.00019287,2]
[373190245,1752899449291,-514.81,0.00019287,2]
[373190247,1752899449301,-480.0,0.00019287,2]
[373190249,1752899449310,-480.0,0.00019287,2]
[373190251,1752899449319,-542.07,0.00019287,2]
[373190253,1752899449328,-151.0,0.00019287,2]
[373190255,1752899449337,-151.0,0.00019287,2]
[373190257,1752899449347,-480.0,0.00019287,2]
[373190259,1752899449357,-480.0,0.00019287,2]
[373190261,1752899449366,-480.0,0.00019287,2]
[373190263,1752899449376,-480.0,0.00019287,2]
[373190265,1752899449385,-565.84,0.00019287,2]
[373190267,1752899449395,-486.44,0.00019287,2]
[373190269,1752899449404,-480.0,0.00019287,2]
[373190271,1752899449414,-480.0,0.00019287,2]
[373190272,1752899449424,-1052.04,0.00019287,2]
[373190275,1752899449433,-480.0,0.00019287,2]
[373190277,1752899449443,-480.0,0.00019287,2]
[373190279,1752899449452,-480.0,0.00019287,2]
[373190281,1752899449461,-480.0,0.00019287,2]
[373190282,1752899449470,-480.43,0.00019287,2]
[373190285,1752899449480,-1198.72,0.00019287,2]
[373190287,1752899449491,-198.33951766,0.00019287,2]
[373190289,1752899449503,-471.66544381,0.00019287,2]
[373190290,1752899449512,-580.25,0.00019287,2]
[373190293,1752899449522,-480.0,0.00019287,2]
[373190294,1752899449531,-508.31,0.00019287,2]
[373190297,1752899449541,-480.0,0.00019287,2]
[373190299,1752899449553,-480.0,0.00019287,2]
[373190300,1752899449562,-541.04,0.00019287,2]
[373190302,1752899449572,-480.0,0.00019287,2]
[373190304,1752899449581,-778.78,0.00019287,2]
[373190306,1752899449591,-480.0,0.00019287,2]
[373190309,1752899449600,-788.01,0.00019287,2]
[373190311,1752899449610,-480.0,0.00019287,2]
[373190313,1752899449620,-501.33146141,0.00019287,2]
[373190314,1752899449629,-807.27,0.00019287,2]
[373190316,1752899449639,-151.0,0.00019287,2]
[373190319,1752899449649,-151.0,0.00019287,2]
[373190320,1752899449659,-1033.69,0.00019287,2]
[373190323,1752899449668,-480.0,0.00019287,2]
[373190324,1752899449679,-480.0,0.00019287,2]
[373190326,1752899449688,-480.0,0.00019287,2]
[373190328,1752899449697,-2213.62,0.00019287,2]
[373190330,1752899449707,-480.0,0.00019287,2]
[373190332,1752899449716,-480.0,0.00019287,2]
[373190334,1752899449725,-480.0,0.00019287,2]
[373190336,1752899449734,-480.0,0.00019287,2]
[373190338,1752899449744,-480.0,0.00019287,2]
[373190340,1752899449753,-697.21,0.00019287,2]
[373190342,1752899449762,-496.11,0.00019287,2]
[373190344,1752899449771,-480.0,0.00019287,2]
[373190346,1752899449780,-480.0,0.00019287,2]
[373190348,1752899449790,-532.39,0.00019287,2]
[373190350,1752899449799,-480.0,0.00019287,2]
[373190352,1752899449809,-3628.66,0.00019287,2]
[373190354,1752899449819,-1215.02,0.00019287,2]
[373190356,1752899449828,-1195.48,0.00019287,2]
[373190358,1752899449838,-480.0,0.00019287,2]
[373190361,1752899449848,-480.0,0.00019287,2]
[373190363,1752899449857,-916.83,0.00019287,2]
[373190364,1752899449866,-615.76,0.00019287,2]
[373190366,1752899449875,-480.0,0.00019287,2]
[373190368,1752899449885,-480.0,0.00019287,2]
[373190370,1752899449894,-551.74,0.00019287,2]
[373190372,1752899449906,-480.0,0.00019287,2]
[373190374,1752899449915,-748.42,0.00019287,2]
[373190376,1752899449924,-227.62428218,0.00019287,2]
[373190378,1752899449933,-609.2,0.00019287,2]
[373190380,1752899449943,-480.0,0.00019287,2]
[373190382,1752899449953,-480.0,0.00019287,2]
[373190384,1752899449962,-480.0,0.00019287,2]
[373190386,1752899449972,-442.62528842,0.00019287,2]
[373190388,1752899449982,-1112.26,0.00019287,2]
[373190410,1752899450164,-589.10970536,0.00019287,2]
[373190413,1752899450200,-480.0,0.00019287,2]
[373190415,1752899450210,-480.0,0.00019287,2]
[373190417,1752899450220,-1889.02,0.00019287,2]
[373190419,1752899450229,-501.52,0.00019287,2]
[373190420,1752899450239,-480.0,0.00019287,2]
[373190422,1752899450249,-480.0,0.00019287,2]
[373190424,1752899450258,-1001.14,0.00019287,2]
[373190425,1752899450268,-480.0,0.00019287,2]
[373190427,1752899450277,-511.56,0.00019287,2]
[373190429,1752899450287,-166.732244,0.00019287,2]
[373190431,1752899450297,-166.732244,0.00019287,2]
[373190433,1752899450307,-480.0,0.00019287,2]
[373190434,1752899450317,-166.732244,0.00019287,2]
[373190436,1752899450326,-166.732244,0.00019287,2]
[373190438,1752899450336,-480.0,0.00019287,2]
[373190440,1752899450345,-731.06,0.00019287,2]
[373190441,1752899450356,-480.0,0.00019287,2]
[373190443,1752899450365,-213.44201,0.00019287,2]
[373190445,1752899450374,-213.44201,0.00019287,2]
[373190447,1752899450384,-480.0,0.00019287,2]
[373190448,1752899450394,-480.0,0.00019287,2]
[373190450,1752899450403,-480.0,0.00019287,2]
[373190452,1752899450413,-480.0,0.00019287,2]
[373190454,1752899450422,-480.0,0.00019287,2]
[373190455,1752899450431,-213.44201,0.00019287,2]
[373190457,1752899450440,-213.44201,0.00019287,2]
[373190459,1752899450449,-2378.44,0.00019287,2]
[373190461,1752899450458,-480.0,0.00019287,2]
[373190463,1752899450468,-480.0,0.00019287,2]
[373190464,1752899450478,-480.0,0.00019287,2]
[373190466,1752899450487,-480.0,0.00019287,2]
[373190468,1752899450497,-480.0,0.00019287,2]
[373190470,1752899450506,-480.0,0.00019287,2]
[373190471,1752899450516,-480.0,0.00019287,2]
[373190473,1752899450530,-707.24,0.00019287,2]
[373190475,1752899450539,-480.0,0.00019287,2]
[373190477,1752899450548,-1166.9,0.00019287,2]
[373190479,1752899450558,-480.0,0.00019287,2]
[373190480,1752899450568,-524.58,0.00019287,2]
[373190482,1752899450578,-480.0,0.00019287,2]
[373190484,1752899450587,-1134.97,0.00019287,2]
[373190486,1752899450597,-523.31,0.00019287,2]
[373190487,1752899450606,-945.44,0.00019287,2]
[373190489,1752899450615,-480.0,0.00019287,2]
[373190491,1752899450625,-209.468012,0.00019287,2]
[373190492,1752899450634,-480.0,0.00019287,2]
[373190494,1752899450644,-785.15,0.00019287,2]
[373190496,1752899450654,-1053.75,0.00019287,2]
[373190498,1752899450664,-1373.09,0.00019287,2]
[373190500,1752899450673,-480.0,0.00019287,2]
[373190502,1752899450683,-480.0,0.00019287,2]
[373190504,1752899450692,-480.0,0.00019287,2]
[373190505,1752899450703,-615.11,0.00019287,2]
[373190507,1752899450713,-514.57,0.00019287,2]
[373190509,1752899450722,-480.0,0.00019287,2]
[373190511,1752899450732,-480.0,0.00019287,2]
[373190512,1752899450741,-779.31,0.00019287,2]
[373190514,1752899450751,-635.56,0.00019287,2]
[373190516,1752899450760,-480.0,0.00019287,2]
[373190518,1752899450770,-480.0,0.00019287,2]
[373190520,1752899450779,-523.69,0.00019287,2]
[373190522,1752899450789,-590.66,0.00019287,2]
[373190523,1752899450799,-1528.03,0.00019287,2]
[373190525,1752899450809,-480.0,0.00019287,2]
[373190527,1752899450818,-769.69,0.00019287,2]
[373190529,1752899450828,-526.43,0.00019287,2]
[373190531,1752899450838,-480.0,0.00019287,2]
[373190533,1752899450847,-480.0,0.00019287,2]
[373190535,1752899450856,-480.0,0.00019287,2]
[373190536,1752899450866,-1688.12,0.00019287,2]
[373190538,1752899450876,-1721.15,0.00019287,2]
[373190540,1752899450886,-480.0,0.00019287,2]
[373190542,1752899450898,-480.0,0.00019287,2]
[373190544,1752899450909,-1079.74,0.00019287,2]
[373190546,1752899450919,-1000.0,0.00019299,2]
[373190548,1752899450928,-1012.0,0.000193,2]
[373190549,1752899450938,-408.74209246,0.00019308,2]
[373190551,1752899450950,-480.0,0.00019309,2]
[373190553,1752899450960,-480.0,0.00019309,2]
[373190555,1752899450969,-480.0,0.00019309,2]
[373190557,1752899450982,-480.0,0.00019309,2]
[373190559,1752899450992,-480.0,0.00019309,2]
[373190561,1752899451001,-866.88,0.00019309,2]
[373190563,1752899451011,-480.0,0.00019309,2]
[373190565,1752899451021,-480.0,0.00019309,2]
[373190566,1752899451030,-480.0,0.00019309,2]
[373190568,1752899451040,-480.0,0.00019309,2]
[373190570,1752899451049,-1377.22,0.00019309,2]
[373190572,1752899451059,-678.29,0.00019309,2]
[373190574,1752899451069,-480.0,0.00019309,2]
[373190576,1752899451079,-480.0,0.00019309,2]
[373190578,1752899451088,-480.0,0.00019309,2]
[373190580,1752899451098,-480.0,0.00019309,2]
[373190581,1752899451107,-1115.01,0.00019309,2]
[373190583,1752899451116,-480.0,0.00019309,2]
[373190585,1752899451126,-480.0,0.00019309,2]
[373190587,1752899451135,-513.73,0.00019309,2]
[373190589,1752899451144,-509.185,0.00019324,2]
[373190591,1752899451153,-297.221,0.00019324,2]
[373190592,1752899451164,-952.0,0.00019324,2]
[373190594,1752899451174,-4125.0,0.00019324,2]
[373190596,1752899451184,-889.0,0.00019324,2]
[373190598,1752899451195,-812.659,0.00019324,2]
[373190600,1752899451205,-674.752,0.00019324,2]
[373190602,1752899451214,-150.0,0.00019326,2]
[373190604,1752899451224,-168.0,0.00019352,2]
[373190606,1752899451233,-408.74209246,0.00019353,2]
[373190607,1752899451243,-151.0,0.00019357,2]
[373190609,1752899451252,-167.71,0.00019366,2]
[373190611,1752899451262,-200.0,0.0001937,2]
[373190613,1752899451271,-200.0,0.0001937,2]
[373190615,1752899451280,-225.124517,0.00019372,2]
[373190616,1752899451290,-500.0,0.00019373,2]
[373190618,1752899451300,-626.38126028,0.00019373,2]
[373190620,1752899451311,-645.84996365,0.00019373,2]
[373190622,1752899451320,-500.89988142,0.00019373,2]
[373190624,1752899451329,-500.0,0.00019373,2]
[373190626,1752899451340,-248.90744819,0.00019373,2]
[373190628,1752899451352,-500.0,0.00019373,2]
[373190630,1752899451373,-218.69952417,0.00019373,2]
[373190631,1752899451382,-500.0,0.00019373,2]
[373190633,1752899451391,-500.0,0.00019373,2]
[373190635,1752899451402,-500.0,0.00019373,2]
[373190637,1752899451412,-500.0,0.00019373,2]
[373190639,1752899451422,-500.0,0.00019373,2]
[373190641,1752899451431,-303.11840941,0.00019373,2]
[373190643,1752899451440,-500.0,0.00019373,2]
[373190644,1752899451450,-500.0,0.00019373,2]
[373190646,1752899451459,-500.0,0.00019373,2]
[373190648,1752899451469,-500.0,0.00019373,2]
[373190650,1752899451479,-582.25482019,0.00019373,2]
[373190652,1752899451488,-500.0,0.00019373,2]
[373190654,1752899451498,-500.0,0.00019373,2]
[373190656,1752899451507,-557.25940759,0.00019373,2]
[373190657,1752899451517,-500.0,0.00019373,2]
[373190659,1752899451526,-500.97091376,0.00019373,2]
[373190661,1752899451535,-508.47070157,0.00019373,2]
[373190663,1752899451545,-240.08493246,0.00019373,2]
[373190665,1752899451553,-500.0,0.00019373,2]
[373190667,1752899451562,-423.0,0.0001938,2]
[373190668,1752899451572,-206.0,0.0001938,2]
[373190670,1752899451581,-151.0,0.00019387,2]
[373190672,1752899451590,-744.02933445,0.0001939,2]
[373190674,1752899451600,-207.9593696,0.0001939,2]
[373190676,1752899451609,-480.0,0.00019395,2]
[373190678,1752899451619,-2286.79,0.00019395,2]
[373190680,1752899451628,-480.0,0.00019395,2]
[373190681,1752899451638,-502.42,0.00019395,2]
[373190683,1752899451648,-480.0,0.00019395,2]
[373190685,1752899451672,-779.35,0.00019395,2]
[373190686,1752899451681,-480.0,0.00019395,2]
[373190687,1752899451691,-480.0,0.00019395,2]
[373190688,1752899451700,-150.62,0.00019396,2]
[373190689,1752899451710,-480.0,0.00019396,2]
[373190690,1752899451719,-841.64,0.00019396,2]
[373190691,1752899451729,-4196.98,0.00019396,2]
[373190692,1752899451739,-480.0,0.00019396,2]
[373190693,1752899451749,-480.0,0.00019396,2]
[373190694,1752899451759,-693.75,0.00019396,2]
[373190695,1752899451768,-480.0,0.00019396,2]
[373190696,1752899451777,-300.0,0.00019396,2]
[373190697,1752899451787,-1113.24,0.00019396,2]
[373190698,1752899451796,-844.98,0.00019396,2]
[373190699,1752899451807,-480.0,0.00019396,2]
[373190701,1752899451817,-1688.73,0.00019396,2]
[373190702,1752899451826,-1062.85,0.00019396,2]
[373190704,1752899451836,-480.0,0.00019396,2]
[373190706,1752899451846,-378.47259678,0.00019396,2]
[373190708,1752899451855,-480.0,0.00019396,2]
[373190710,1752899451865,-480.0,0.00019396,2]
[373190712,1752899451874,-480.0,0.00019396,2]
[373190714,1752899451884,-1068.12,0.00019396,2]
[373190716,1752899451894,-480.0,0.00019397,2]
[373190718,1752899451908,-480.0,0.00019397,2]
[373190720,1752899451918,-480.0,0.00019397,2]
[373190722,1752899451927,-1667.17,0.00019397,2]
[373190724,1752899451937,-480.0,0.00019397,2]
[373190726,1752899451946,-480.0,0.00019397,2]
[373190727,1752899451955,-262.97818346,0.00019397,2]
[373190729,1752899451965,-480.0,0.00019397,2]
[373190731,1752899451975,-480.0,0.00019397,2]
[373190733,1752899451985,-480.0,0.00019397,2]
[373190735,1752899451995,-480.0,0.00019397,2]
[373190738,1752899452004,-497.94610977,0.00019397,2]
[373190739,1752899452014,-480.0,0.00019397,2]
[373190741,1752899452023,-480.0,0.00019397,2]
[373190743,1752899452032,-480.0,0.00019397,2]
[373190745,1752899452042,-480.0,0.00019397,2]
[373190747,1752899452051,-480.0,0.00019397,2]
[373190749,1752899452063,-480.0,0.00019397,2]
[373190751,1752899452073,-480.0,0.00019397,2]
[373190754,1752899452082,-480.0,0.00019397,2]
[373190756,1752899452092,-480.0,0.00019397,2]
[373190757,1752899452102,-480.0,0.00019397,2]
[373190760,1752899452111,-480.0,0.00019397,2]
[373190761,1752899452121,-439.99572666,0.00019397,2]
[373190763,1752899452130,-480.0,0.00019397,2]
[373190765,1752899452140,-480.0,0.00019397,2]
[373190767,1752899452149,-480.0,0.00019397,2]
[373190769,1752899452158,-480.0,0.00019397,2]
[373190771,1752899452168,-480.0,0.00019397,2]
[373190773,1752899452177,-480.0,0.00019397,2]
[373190775,1752899452186,-480.0,0.00019397,2]
[373190777,1752899452196,-480.0,0.00019397,2]
[373190779,1752899452205,-480.0,0.00019397,2]
[373190781,1752899452215,-480.0,0.00019397,2]
[373190783,1752899452224,-480.0,0.00019397,2]
[373190785,1752899452236,-480.0,0.00019397,2]
[373190787,1752899452246,-480.0,0.00019397,2]
[373190789,1752899452255,-1134.86,0.00019397,2]
[373190791,1752899452265,-480.0,0.00019397,2]
[373190793,1752899452274,-480.0,0.00019397,2]
[373190795,1752899452284,-480.0,0.00019397,2]
[373190798,1752899452294,-487.98,0.00019397,2]
[373190800,1752899452304,-1007.98,0.00019397,2]
[373190801,1752899452315,-480.0,0.00019397,2]
[373190803,1752899452324,-480.0,0.00019397,2]
[373190806,1752899452333,-480.0,0.00019397,2]
[373190807,1752899452343,-480.0,0.00019397,2]
[373190809,1752899452352,-925.23,0.00019397,2]
[373190811,1752899452362,-635.47,0.00019397,2]
[373190813,1752899452372,-480.0,0.00019397,2]
[373190815,1752899452382,-9427.14,0.00019397,2]
[373190817,1752899452392,-480.0,0.00019397,2]
[373190819,1752899452401,-480.0,0.00019397,2]
[373190821,1752899452410,-1359.03,0.00019397,2]
[373190823,1752899452420,-480.0,0.00019397,2]
[373190825,1752899452429,-480.0,0.00019397,2]
[373190827,1752899452438,-1428.21,0.00019397,2]
[373190829,1752899452447,-877.57,0.00019397,2]
[373190831,1752899452457,-480.0,0.00019397,2]
[373190834,1752899452467,-480.0,0.00019397,2]
[373190836,1752899452477,-480.0,0.00019397,2]
[373190838,1752899452486,-625.51346572,0.00019397,2]
[373190840,1752899452495,-514.81,0.00019397,2]
[373190842,1752899452504,-480.0,0.00019397,2]
[373190844,1752899452513,-480.0,0.00019397,2]
[373190846,1752899452523,-542.07,0.00019397,2]
[373190848,1752899452532,-151.0,0.00019397,2]
[373190850,1752899452542,-480.0,0.00019397,2]
[373190851,1752899452551,-480.0,0.00019397,2]
[373190854,1752899452564,-480.0,0.00019397,2]
[373190856,1752899452573,-480.0,0.00019397,2]
[373190858,1752899452582,-565.84,0.00019397,2]
[373190860,1752899452592,-486.44,0.00019397,2]
[373190862,1752899452601,-480.0,0.00019397,2]
[373190864,1752899452610,-480.0,0.00019397,2]
[373190866,1752899452619,-1052.04,0.00019397,2]
[373190868,1752899452629,-480.0,0.00019397,2]
[373190870,1752899452638,-480.0,0.00019397,2]
[373190872,1752899452648,-480.0,0.00019397,2]
[373190874,1752899452657,-480.0,0.00019397,2]
[373190876,1752899452666,-480.43,0.00019397,2]
[373190877,1752899452675,-1198.72,0.00019397,2]
[373190879,1752899452685,-580.25,0.00019397,2]
[373190881,1752899452694,-480.0,0.00019397,2]
[373190883,1752899452704,-480.0,0.00019397,2]
[373190885,1752899452713,-508.31,0.00019397,2]
[373190887,1752899452722,-480.0,0.00019397,2]
[373190889,1752899452732,-541.04,0.00019397,2]
[373190891,1752899452741,-480.0,0.00019397,2]
[373190893,1752899452750,-778.78,0.00019397,2]
[373190895,1752899452759,-480.0,0.00019397,2]
[373190897,1752899452768,-788.01,0.00019397,2]
[373190899,1752899452777,-480.0,0.00019397,2]
[373190901,1752899452786,-807.27,0.00019397,2]
[373190903,1752899452796,-1033.69,0.00019397,2]
[373190905,1752899452805,-480.0,0.00019397,2]
[373190907,1752899452814,-480.0,0.00019397,2]
[373190909,1752899452823,-151.0,0.00019397,2]
[373190911,1752899452832,-151.0,0.00019397,2]
[373190913,1752899452841,-480.0,0.00019397,2]
[373190915,1752899452851,-2213.62,0.00019397,2]
[373190917,1752899452860,-480.0,0.00019397,2]
[373190919,1752899452870,-157.32766048,0.00019397,2]
[373190921,1752899452879,-480.0,0.00019397,2]
[373190923,1752899452888,-480.0,0.00019397,2]
[373190925,1752899452897,-480.0,0.00019397,2]
[373190927,1752899452910,-697.21,0.00019397,2]
[373190929,1752899452920,-496.11,0.00019397,2]
[373190931,1752899452929,-480.0,0.00019397,2]
[373190933,1752899452938,-480.0,0.00019397,2]
[373190935,1752899452947,-532.39,0.00019397,2]
[373190936,1752899452956,-480.0,0.00019397,2]
[373190938,1752899452965,-3628.66,0.00019397,2]
[373190940,1752899452977,-1215.02,0.00019397,2]
[373190942,1752899452986,-1195.48,0.00019397,2]
[373190945,1752899452996,-480.0,0.00019397,2]
[373190946,1752899453005,-480.0,0.00019397,2]
[373190948,1752899453015,-916.83,0.00019397,2]
[373190950,1752899453024,-615.76,0.00019397,2]
[373190953,1752899453034,-480.0,0.00019397,2]
[373190955,1752899453044,-480.0,0.00019397,2]
[373190956,1752899453053,-551.74,0.00019397,2]
[373190958,1752899453064,-480.0,0.00019397,2]
[373190960,1752899453074,-748.42,0.00019397,2]
[373190962,1752899453083,-609.2,0.00019397,2]
[373190965,1752899453092,-480.0,0.00019397,2]
[373190966,1752899453103,-480.0,0.00019397,2]
[373190968,1752899453112,-480.0,0.00019397,2]
[373190970,1752899453122,-1112.26,0.00019397,2]
[373190972,1752899453132,-480.0,0.00019397,2]
[373190974,1752899453142,-480.0,0.00019397,2]
[373190976,1752899453151,-1889.02,0.00019397,2]
[373190978,1752899453160,-501.52,0.00019397,2]
[373190980,1752899453170,-480.0,0.00019397,2]
[373190982,1752899453179,-480.0,0.00019397,2]